bitfinex/quotes_ETHUSD_20220201
["timestamp","ask_amount","ask_price","bid_price","bid_amount"]
[1643706135213,0.007,2776.1,2775.7,0.69598101]
[1643706136222,0.007,2776.1,2775.4,0.1801]
[1643706136612,0.007,2776.1,2775.4,1.1801]
[1643706137013,0.007,2776.1,2775.7,0.004]
[1643706138616,0.41347489,2776.0,2775.7,0.004]
[1643706139077,0.71347489,2776.0,2775.7,0.004]
[1643706139278,0.3,2776.0,2775.7,0.004]
[1643706139578,0.307,2776.1,2775.7,0.004]
[1643706139778,0.007,2776.1,2775.7,0.004]
[1643706139978,0.307,2776.1,2775.7,0.004]
[1643706140279,0.007,2776.1,2775.7,0.004]
[1643706141180,0.35380463,2776.1,2775.7,0.004]
[1643706141486,0.65380463,2776.1,2775.7,0.004]
[1643706141681,0.66619786,2776.1,2775.7,0.004]
[1643706142182,1.09919786,2776.1,2775.7,0.004]
[1643706142382,1.39919786,2776.1,2775.7,0.004]
[1643706142618,0.005,2776.0,2775.7,0.004]
[1643706143018,1.39919786,2776.1,2775.7,0.004]
[1643706143019,1.05878786,2776.1,2775.7,0.004]
[1643706143418,1.04639463,2776.1,2775.7,0.004]
[1643706144821,2.04639462,2776.1,2774.7,0.15074838]
[1643706145026,2.04639462,2776.1,2774.1,2.0]
[1643706145027,1.90112659,2775.7,2774.1,2.0]
[1643706145226,1.90112659,2775.7,2773.9,0.26239387]
[1643706145227,0.99999999,2775.3,2773.9,2.01239387]
[1643706145525,1.5011266,2775.7,2773.9,0.01239387]
[1643706145526,0.733,2775.4,2773.9,0.01239387]
[1643706145730,1.033,2775.4,2773.9,2.01239387]
[1643706145922,0.733,2775.4,2774.3,0.73053959]
[1643706146127,0.733,2775.4,2774.0,0.1801]
[1643706146128,0.6,2775.4,2774.0,0.1801]
[1643706146388,0.6,2775.4,2773.9,2.01239387]
[1643706146389,2.0,2775.3,2773.9,0.1801]
[1643706146588,0.3,2775.4,2773.9,0.1801]
[1643706146788,2.0,2775.6,2773.9,0.1801]
[1643706146990,0.3,2775.3,2773.9,0.1801]
[1643706147190,4.5151266,2775.7,2773.9,2.80804071]
[1643706147391,0.007,2776.1,2774.7,0.25]
[1643706147594,0.007,2776.1,2774.9,21.14]
[1643706147798,0.007,2776.1,2776.0,0.87404038]
[1643706147992,0.007,2776.1,2775.4,0.01210034]
[1643706147993,0.007,2776.1,2775.8,0.25]
[1643706148190,0.44947449,2776.8,2775.8,0.25]
[1643706148591,0.10924664,2775.6,2775.4,0.01210034]
[1643706148792,0.10924664,2775.6,2775.5,4.3801]
[1643706148991,0.10924664,2775.6,2775.5,5.072612]
[1643706149191,0.10924664,2775.6,2775.5,6.072612]
[1643706149793,0.10924664,2775.6,2775.5,0.1801]
[1643706150041,0.10924664,2775.6,2774.6,0.1801]
[1643706150225,0.10924664,2775.6,2774.5,0.1801]
[1643706150423,0.10924664,2775.6,2774.5,2.36099]
[1643706150620,0.10924664,2775.6,2774.7,0.33900012]
[1643706150823,0.42892104,2776.0,2775.3,0.80153823]
[1643706151245,0.19749803,2776.0,2775.3,1.05153823]
[1643706151626,1.0809394,2776.6,2775.3,1.05153823]
[1643706152725,0.31768964,2776.0,2775.3,1.05153823]
[1643706152927,0.31768964,2776.0,2775.3,0.25]
[1643706152928,0.61768964,2776.0,2775.3,0.25]
[1643706153967,0.3,2776.0,2775.3,0.25]
[1643706154167,0.1801,2776.6,2775.3,0.25]
[1643706154566,0.1801,2776.6,2775.3,0.4301]
[1643706154970,0.1801,2776.6,2775.3,0.1944]
[1643706155171,0.01260749,2776.1,2775.1,0.3332]
[1643706155372,0.1801,2776.0,2775.1,0.5832]
[1643706155971,0.44788415,2775.5,2775.1,0.5832]
[1643706156173,0.74788415,2775.5,2775.1,0.5832]
[1643706156370,0.3,2775.5,2775.1,0.5832]
[1643706156576,0.1801,2776.0,2775.1,0.5832]
[1643706156774,0.01294725,2776.5,2775.2,0.1801]
[1643706156974,0.01294725,2776.5,2775.2,2.1801]
[1643706157273,0.01294725,2776.5,2775.2,0.1801]
[1643706157542,0.1801,2776.8,2775.6,0.78216934]
[1643706157740,0.1801,2777.1,2775.6,0.78216934]
[1643706157944,1.05744198,2777.0,2775.7,0.25]
[1643706158146,1.05744198,2777.0,2775.4,0.1801]
[1643706158147,0.01239049,2776.3,2775.4,0.1801]
[1643706158345,1.23754198,2776.2,2775.1,0.3332]
[1643706158544,1.05744198,2776.1,2775.1,0.3332]
[1643706158946,1.06571505,2776.0,2775.2,0.25]
[1643706159146,0.40371587,2775.5,2775.2,1.15262728]
[1643706159345,0.3,2776.0,2775.2,1.33272728]
[1643706159744,1.0658695,2775.9,2775.2,1.33272728]
[1643706159945,0.31239049,2776.3,2775.2,1.33272728]
[1643706160147,0.3,2775.9,2775.2,0.4301]
[1643706160347,0.31239049,2776.3,2775.2,0.4301]
[1643706160348,1.06929965,2775.8,2775.2,0.4301]
[1643706160547,1.06929965,2775.7,2775.2,0.4301]
[1643706160746,0.39859231,2776.3,2775.2,0.4301]
[1643706160945,0.3,2775.7,2775.2,0.4301]
[1643706161146,0.6530495,2776.1,2775.2,0.4301]
[1643706161147,1.06945836,2775.6,2775.2,0.4301]
[1643706161364,0.3,2775.6,2775.3,0.01382661]
[1643706161767,0.75164181,2776.3,2775.3,0.01382661]
[1643706161964,1.72574248,2776.2,2775.3,0.01382661]
[1643706162166,0.6530495,2776.1,2775.3,0.01382661]
[1643706162370,1.07269298,2776.1,2775.3,0.01382661]
[1643706162564,1.07269298,2776.1,2775.3,2.661e-05]
[1643706162770,0.92231056,2775.7,2775.3,2.661e-05]
[1643706162973,1.07269298,2775.6,2775.3,2.661e-05]
[1643706163169,0.1801,2775.5,2775.3,2.661e-05]
[1643706163367,1.07269298,2775.4,2775.3,2.661e-05]
[1643706165317,1.7532929,2775.4,2775.3,2.661e-05]
[1643706165516,1.07269298,2775.4,2775.3,2.661e-05]
[1643706165718,1.9333929,2775.4,2775.3,2.661e-05]
[1643706165922,1.25279298,2775.4,2775.3,2.661e-05]
[1643706166331,1.25279298,2775.4,2775.1,0.3332]
[1643706166531,1.07269298,2775.3,2775.1,0.3332]
[1643706167122,1.07269298,2775.3,2773.9,1.0]
[1643706167323,1.07269298,2775.3,2774.0,0.42538447]
[1643706167525,1.07269298,2775.3,2774.1,0.4302]
[1643706167724,1.07269298,2775.4,2774.2,0.42538447]
[1643706168323,1.07269298,2775.4,2774.9,0.5]
[1643706169172,0.35993885,2775.3,2774.9,0.5]
[1643706169768,0.35993885,2775.3,2774.9,0.4]
[1643706169974,0.35993885,2775.3,2775.0,0.1801]
[1643706170179,0.35993885,2775.3,2774.9,0.4]
[1643706170778,0.86062407,2775.8,2775.1,0.71771418]
[1643706170976,0.01201468,2776.2,2775.1,0.71771418]
[1643706170977,0.68052407,2775.9,2775.1,0.71771418]
[1643706171173,0.1801,2776.3,2775.2,2.1801]
[1643706171174,0.68052407,2776.0,2775.2,2.1801]
[1643706171374,1.0706056,2776.3,2775.2,0.1801]
[1643706171375,0.1801,2776.3,2775.2,0.1801]
[1643706171573,0.8905056,2776.4,2775.1,0.1801]
[1643706171970,0.42724136,2775.3,2775.1,0.1801]
[1643706172170,0.18883558,2775.3,2775.1,0.1801]
[1643706172370,1.0706056,2776.4,2775.1,0.1801]
[1643706172612,1.0706056,2776.4,2775.1,2.1801]
[1643706172811,1.0706056,2776.4,2775.1,0.1801]
[1643706173219,0.1801,2776.4,2775.1,0.1801]
[1643706173415,0.42248082,2775.7,2775.1,0.1801]
[1643706173616,0.42248082,2775.7,2775.1,2.19115845]
[1643706173816,0.42248082,2775.7,2775.1,0.1801]
[1643706174021,7.42507479,2778.0,2775.9,6.6]
[1643706174224,0.90719889,2777.8,2777.2,0.0127729]
[1643706174426,7.2007,2777.7,2777.3,0.4299]
[1643706174818,7.2007,2777.7,2776.6,0.1799]
[1643706175019,2.4454565,2777.6,2776.6,0.25]
[1643706175222,0.1744,2777.5,2776.6,0.25]
[1643706175620,1.7154921,2777.5,2776.6,0.25]
[1643706176261,0.7720934,2777.1,2776.2,0.25]
[1643706176483,0.7720934,2777.1,2775.7,0.1799]
[1643706176484,2.1779,2777.0,2775.7,0.1799]
[1643706176667,2.433,2777.0,2775.4,0.99999999]
[1643706176866,0.5461944,2777.0,2775.6,1.14500489]
[1643706177068,0.1131944,2776.9,2775.6,1.14500489]
[1643706177266,0.39999399,2776.6,2775.6,1.48891683]
[1643706177466,1.0,2776.7,2775.6,3.37545348]
[1643706178267,1.0,2776.7,2775.6,2.14500488]
[1643706178864,1.0,2776.5,2775.6,2.14500488]
[1643706179267,1.0,2776.1,2775.6,2.14500488]
[1643706179468,2.72192089,2777.3,2776.0,1.01285055]
[1643706179469,0.1131944,2777.3,2776.0,1.01285055]
[1643706179673,3.869,2777.6,2776.6,0.01276831]
[1643706179867,0.00301,2778.0,2776.5,0.99999999]
[1643706180124,0.00301,2778.0,2776.3,2.0]
[1643706180316,0.00301,2778.0,2776.5,0.99999999]
[1643706180518,0.00301,2778.0,2776.7,0.86400686]
[1643706180720,0.00301,2778.0,2776.5,0.99999999]
[1643706180923,0.00301,2778.0,2776.2,0.26203371]
[1643706180924,0.00301,2778.0,2776.3,0.99999999]
[1643706181224,0.678541,2777.5,2776.4,2.0]
[1643706181422,0.678541,2777.5,2776.3,0.99999999]
[1643706181628,0.43812029,2776.7,2776.3,2.99999999]
[1643706181822,0.43812029,2776.7,2776.3,0.99999999]
[1643706182331,0.43812029,2776.7,2776.0,0.1799]
[1643706182523,0.43812029,2776.7,2775.5,1.01264201]
[1643706182921,0.40097408,2775.9,2775.5,1.01264201]
[1643706183122,0.433,2777.0,2775.8,0.99999999]
[1643706183321,0.678541,2777.1,2775.8,0.99999999]
[1643706183521,0.678541,2777.1,2775.8,1.24999999]
[1643706183796,0.678541,2777.0,2775.8,1.24999999]
[1643706184175,0.43891106,2776.1,2775.8,1.24999999]
[1643706184373,0.43891106,2776.1,2775.8,0.25]
[1643706185178,0.43891106,2776.1,2775.5,0.99999999]
[1643706185179,1.27761106,2776.1,2775.5,0.99999999]
[1643706185581,0.433,2777.5,2776.0,7.61294036]
[1643706185780,7.2027,2777.4,2777.3,0.0120301]
[1643706185980,7.2027,2777.4,2777.0,0.01256285]
[1643706186178,7.2027,2777.4,2777.1,0.1799]
[1643706186383,7.2027,2777.4,2777.3,0.97473091]
[1643706186677,7.2027,2777.4,2777.3,1.15463091]
[1643706186878,7.2027,2777.4,2777.3,0.97473091]
[1643706187079,7.2027,2777.4,2777.3,0.96203009]
[1643706187567,7.2027,2777.4,2777.1,0.1799]
[1643706187760,7.2027,2777.4,2777.0,1.14193009]
[1643706188259,7.2027,2777.4,2777.2,0.42061219]
[1643706188459,7.2027,2777.4,2777.0,1.14193009]
[1643706188660,7.2027,2777.4,2777.0,0.96203009]
[1643706189063,7.2027,2777.4,2777.1,0.1799]
[1643706189265,7.2027,2777.4,2777.1,0.96203009]
[1643706189466,7.2027,2777.4,2777.0,0.1799]
[1643706189666,7.2027,2777.4,2777.0,0.96203009]
[1643706190669,7.2027,2777.4,2777.3,0.9743265]
[1643706190866,7.2027,2777.4,2777.3,1.14193009]
[1643706191064,7.2027,2777.4,2777.1,0.1799]
[1643706191266,7.2027,2777.4,2776.9,0.25]
[1643706191466,7.2027,2777.4,2776.7,0.1799]
[1643706191668,7.2027,2777.4,2776.6,1.21203009]
[1643706191867,7.2027,2777.4,2776.6,0.67895287]
[1643706192064,7.2027,2777.4,2777.0,0.96203009]
[1643706192671,7.2027,2777.4,2777.3,0.96203009]
[1643706193170,5.30839346,2777.4,2777.3,3.61017413]
[1643706193368,5.30839346,2777.4,2777.3,2.72632054]
[1643706193566,3.91609346,2777.4,2777.3,3.66579116]
[1643706193767,3.91609346,2777.4,2777.3,5.60281112]
[1643706193970,3.91609346,2777.4,2777.3,5.60182112]
[1643706194310,3.91609346,2777.4,2777.3,3.66480116]
[1643706194469,3.91609346,2777.4,2777.3,5.58408195]
[1643706195133,34.31606123,2778.9,2777.5,6.6]
[1643706195374,34.31606123,2778.9,2778.8,0.96203009]
[1643706195529,34.30106123,2778.9,2778.8,1.40723429]
[1643706196126,34.30106123,2778.9,2778.8,1.39503009]
[1643706196328,34.30106123,2778.9,2778.8,0.433]
[1643706196723,34.30106123,2778.9,2778.8,1.39503009]
[1643706196928,34.30106123,2778.9,2778.8,0.433]
[1643706197132,34.30106123,2778.9,2778.7,0.96203009]
[1643706197330,34.31606123,2778.9,2778.7,0.96203009]
[1643706197577,34.31606123,2778.9,2778.6,0.25]
[1643706197727,34.31606123,2778.9,2778.6,1.21203009]
[1643706198129,34.31606123,2778.9,2778.6,0.96203009]
[1643706198529,31.27675388,2778.9,2778.6,0.96203009]
[1643706198767,31.27675388,2778.9,2778.5,0.25]
[1643706198973,31.27675388,2778.9,2778.1,0.92148011]
[1643706199172,0.67515153,2778.8,2778.1,0.92148011]
[1643706199381,31.27675388,2778.9,2778.4,0.4106024]
[1643706199775,31.27675388,2778.9,2778.2,1.21203009]
[1643706199973,31.27675388,2778.9,2778.3,0.88413402]
[1643706200577,31.27675388,2778.9,2778.3,1.84616411]
[1643706201175,31.32675388,2778.9,2778.3,1.84616411]
[1643706201379,31.32675388,2778.9,2778.4,0.02218761]
[1643706202374,0.39981972,2778.8,2778.4,0.02218761]
[1643706202616,31.32675388,2778.9,2778.4,0.80628768]
[1643706203422,31.32675388,2778.9,2778.4,0.02218761]
[1643706204123,0.05,2778.4,2778.2,0.22218761]
[1643706204523,0.05,2778.4,2778.3,0.77088208]
[1643706204722,0.05,2778.4,2778.3,1.73291217]
[1643706204923,0.05,2778.4,2778.3,0.77088208]
[1643706205325,0.05,2778.4,2778.1,0.92148011]
[1643706206372,0.05,2778.4,2778.2,0.68932847]
[1643706206770,0.05,2778.4,2778.1,0.92148011]
[1643706207778,0.05,2778.4,2778.2,0.87590165]
[1643706209380,0.05,2778.4,2778.1,0.92148011]
[1643706212116,0.35,2778.4,2778.2,0.96203009]
[1643706212318,0.05,2778.4,2778.3,0.77469055]
[1643706212516,0.05,2778.4,2778.3,2.17729372]
[1643706213862,0.05,2778.4,2778.3,1.73672064]
[1643706215267,0.05,2778.4,2778.3,0.14693524]
[1643706216171,0.05,2778.4,2778.3,0.32683524]
[1643706216366,31.32675388,2778.9,2778.3,0.32683524]
[1643706216568,32.02786524,2778.9,2778.3,0.14693524]
[1643706216768,31.62675388,2778.9,2778.6,0.14693524]
[1643706217169,31.62675388,2778.9,2778.2,0.1799]
[1643706217370,2.0,2778.8,2778.1,1.10138011]
[1643706217618,0.65719198,2778.7,2778.1,1.10138011]
[1643706217815,2.40571295,2778.6,2778.1,0.92148011]
[1643706218216,0.58,2778.5,2778.1,0.92148011]
[1643706218418,0.58,2778.4,2778.1,1.81675546]
[1643706218619,0.58,2778.3,2778.1,1.81675546]
[1643706219228,0.58,2778.3,2778.2,0.14693524]
[1643706219823,0.58,2778.3,2778.1,1.81675546]
[1643706220429,0.58,2778.3,2778.2,0.14693524]
[1643706221384,0.58,2778.3,2778.2,0.32683524]
[1643706221580,0.58,2778.3,2778.2,2.32683524]
[1643706221777,0.58,2778.3,2778.2,3.50772524]
[1643706222175,0.58,2778.3,2778.2,1.50772524]
[1643706222375,0.58,2778.3,2778.2,2.50772524]
[1643706222579,0.58,2778.3,2778.2,1.50772524]
[1643706222879,0.58,2778.3,2778.2,0.50772524]
[1643706223079,31.32675388,2778.9,2778.2,0.50772524]
[1643706223080,0.6068056,2778.8,2778.3,27.74]
[1643706223278,0.6068056,2778.8,2778.7,0.14693524]
[1643706223894,0.6068056,2778.8,2778.5,0.39693524]
[1643706224087,0.6068056,2778.8,2778.5,0.25]
[1643706224285,0.6068056,2778.8,2778.6,0.14693524]
[1643706225017,0.6068056,2778.7,2778.5,0.25]
[1643706225418,0.6068056,2778.7,2778.2,0.25]
[1643706225822,0.6068056,2778.7,2778.5,0.14693524]
[1643706227726,0.6068056,2778.7,2778.6,0.1799]
[1643706228886,0.8568056,2778.7,2778.6,0.1799]
[1643706231384,0.8568056,2778.7,2778.5,0.14693524]
[1643706231585,0.8568056,2778.7,2778.5,0.50727479]
[1643706231989,0.6068056,2778.7,2778.6,6.37200827]
[1643706232388,0.6068056,2778.7,2778.6,1.82200827]
[1643706232823,0.6068056,2778.7,2778.6,0.82200827]
[1643706233223,0.9068056,2778.7,2778.6,0.82200827]
[1643706233523,0.9068056,2778.7,2778.6,0.77200827]
[1643706233927,0.6068056,2778.7,2778.6,4.22200827]
[1643706234126,0.6068056,2778.7,2778.6,6.34761213]
[1643706234332,0.6068056,2778.7,2778.6,7.34761213]
[1643706234540,0.6068056,2778.7,2778.6,5.22200827]
[1643706234723,0.6068056,2778.7,2778.6,5.40289827]
[1643706234924,0.6068056,2778.7,2778.6,7.32054756]
[1643706235131,0.6068056,2778.7,2778.6,5.58279827]
[1643706235325,10.32103259,2778.9,2778.7,3.5]
[1643706235528,10.32103259,2778.9,2778.8,0.14693524]
[1643706235726,10.31603259,2778.9,2778.8,1.14693524]
[1643706235925,10.31603259,2778.9,2778.8,0.14693524]
[1643706236128,10.31603259,2778.9,2778.8,0.32683524]
[1643706236369,10.31603259,2778.9,2778.8,0.14693524]
[1643706236568,10.36603259,2778.9,2778.8,0.14693524]
[1643706236773,10.36603259,2778.9,2778.3,0.1799]
[1643706236976,10.37103259,2778.9,2778.2,0.25]
[1643706237180,10.37103259,2778.9,2778.2,0.39693524]
[1643706237374,10.37103259,2778.9,2778.2,0.25]
[1643706237576,10.37103259,2778.9,2778.8,0.14693524]
[1643706237776,10.36603259,2778.9,2778.8,0.14693524]
[1643706237975,10.36603259,2778.9,2778.7,0.14693524]
[1643706238175,10.37103259,2778.9,2778.7,0.14693524]
[1643706240622,10.37103259,2778.9,2778.8,5.05136626]
[1643706240831,10.36603259,2778.9,2778.8,6.05136626]
[1643706241017,10.36603259,2778.9,2778.8,1.35136626]
[1643706241224,10.36603259,2778.9,2778.8,1.51689928]
[1643706242523,10.36603259,2778.9,2778.8,22.65689928]
[1643706242723,10.36603259,2778.9,2778.8,2.51689928]
[1643706243125,10.36603259,2778.9,2778.8,4.94989928]
[1643706243329,10.36603259,2778.9,2778.8,5.24989928]
[1643706243773,10.26603259,2778.9,2778.8,24.08989928]
[1643706243977,10.26216584,2778.9,2778.8,24.45277951]
[1643706244377,3.01143282,2779.8,2779.0,21.14]
[1643706244576,3.01143282,2779.8,2779.7,0.15929183]
[1643706244577,1.61863282,2779.8,2779.7,0.15929183]
[1643706244780,1.61863282,2779.8,2779.7,0.14693524]
[1643706245050,0.16554622,2780.2,2779.7,0.14693524]
[1643706245051,0.1155623,2780.2,2779.8,2.85]
[1643706245184,1.91181251,2781.0,2780.3,6.4]
[1643706245185,1.01,2781.0,2780.3,6.4]
[1643706245399,1.35642237,2781.5,2780.3,6.4]
[1643706245400,0.00466312,2782.0,2781.0,6.61]
[1643706245583,4.96023746,2783.7,2782.0,6.65]
[1643706245782,0.56773971,2783.9,2782.1,14.063]
[1643706245980,0.90146753,2784.2,2782.1,14.063]
[1643706245981,0.90146753,2784.2,2782.7,0.2198]
[1643706246187,0.67693999,2784.1,2784.0,1.0]
[1643706246381,0.351,2785.0,2784.0,8.20629]
[1643706246585,0.351,2785.0,2784.1,6.65]
[1643706246781,0.351,2785.0,2784.6,1.0]
[1643706246782,2.541e-05,2784.8,2784.6,1.0]
[1643706246981,0.331,2785.0,2784.7,7.58148997]
[1643706247182,0.04,2785.2,2784.9,0.18089]
[1643706247386,0.04,2785.2,2785.1,6.83089]
[1643706247635,0.04,2785.2,2784.8,0.18089]
[1643706247829,0.04,2785.2,2784.8,0.433]
[1643706248028,0.15005128,2786.0,2785.0,6.65]
[1643706248233,0.67103805,2786.6,2785.3,5.413]
[1643706248427,0.67103805,2786.6,2785.4,1.28067302]
[1643706248428,3.805e-05,2786.6,2785.4,1.28067302]
[1643706248650,3.805e-05,2787.3,2785.4,1.58067302]
[1643706248832,3.805e-05,2787.3,2785.7,0.89722]
[1643706249031,0.06522955,2787.6,2785.7,0.89722]
[1643706249234,0.02724767,2787.8,2785.8,0.6125]
[1643706249434,2.10524368,2788.3,2786.1,0.25]
[1643706249631,0.73499574,2787.6,2786.5,0.01223294]
[1643706250136,0.73499574,2787.6,2786.1,0.25]
[1643706250137,2.005,2788.4,2786.6,0.99999999]
[1643706250334,0.005,2788.3,2786.7,0.01256929]
[1643706250533,2.14746377,2788.4,2786.6,0.99999999]
[1643706250733,0.015,2788.3,2786.4,1.0]
[1643706250931,0.14746377,2788.4,2786.6,0.25]
[1643706251135,0.71852286,2787.8,2786.6,0.25]
[1643706251378,0.14746377,2788.4,2786.8,0.99999999]
[1643706251379,0.13819997,2788.3,2786.8,0.99999999]
[1643706251582,2.58347521,2788.3,2786.8,0.99999999]
[1643706251781,2.58347521,2788.3,2786.6,0.25]
[1643706251782,0.36782638,2787.3,2786.6,0.25]
[1643706251982,0.448,2788.2,2785.7,0.18720152]
[1643706252182,2.433,2788.1,2785.8,0.99999999]
[1643706252382,2.433,2788.1,2785.7,0.00770152]
[1643706252383,0.73826797,2786.4,2786.1,0.01240806]
[1643706252579,0.73826797,2786.4,2784.2,1.42179001]
[1643706252580,1.17126797,2786.4,2784.2,1.42179001]
[1643706252786,1.17126797,2786.4,2783.0,0.5182]
[1643706252787,2.005,2786.3,2786.2,0.01290471]
[1643706252982,0.01179402,2786.2,2783.8,0.1794]
[1643706253182,0.99999999,2785.2,2784.7,0.01241818]
[1643706253390,0.32969873,2786.2,2783.0,0.1794]
[1643706253391,6.413,2785.9,2785.1,0.00534302]
[1643706253681,0.99999999,2785.2,2784.3,0.01271944]
[1643706253885,0.99999999,2784.4,2782.9,31.71260723]
[1643706254084,5.413,2784.8,2781.5,0.65748601]
[1643706254085,11.30920472,2784.2,2781.5,0.65748601]
[1643706254292,11.30920472,2784.2,2781.8,0.1794]
[1643706254293,0.99999999,2783.8,2781.8,0.1794]
[1643706254487,2.433,2783.7,2781.3,1.42179001]
[1643706254685,0.84637745,2782.2,2780.4,2.07927602]
[1643706254888,0.84637745,2782.2,2781.7,0.01263391]
[1643706254889,0.433,2782.1,2781.7,0.01263391]
[1643706255132,0.438,2782.1,2781.7,0.01263391]
[1643706255333,0.438,2782.1,2780.5,0.102]
[1643706255334,0.41990118,2782.0,2780.5,0.102]
[1643706255533,0.57119997,2781.9,2780.5,0.102]
[1643706255734,0.57119997,2781.9,2779.6,2.27625918]
[1643706255735,0.75567997,2781.9,2780.0,1.1797]
[1643706255943,0.75567997,2781.9,2780.1,1.65500324]
[1643706255944,0.433,2781.9,2780.1,1.65500324]
[1643706256133,0.00485789,2783.3,2780.2,1.69650327]
[1643706256440,5.2759,2783.4,2780.3,3.51680327]
[1643706256441,0.09999999,2782.2,2780.3,3.51680327]
[1643706256634,0.01260438,2783.0,2780.7,0.9]
[1643706256834,0.01260438,2783.0,2780.8,2.79243]
[1643706257035,0.01260438,2783.0,2782.2,0.91149408]
[1643706257239,5.1064,2784.9,2782.2,0.91149408]
[1643706257240,0.0123437,2784.0,2782.3,2.79233]
[1643706257440,0.09999999,2784.5,2782.4,0.9]
[1643706257636,0.01200867,2784.7,2782.5,2.1796]
[1643706257637,0.09999999,2784.0,2782.5,2.1796]
[1643706257841,0.09999999,2784.8,2783.0,1.0]
[1643706258039,9.72335277,2785.7,2783.1,2.79233]
[1643706258237,0.01295001,2785.9,2783.9,1.0]
[1643706258435,0.15114998,2785.9,2784.0,2.6124]
[1643706258638,0.15114998,2785.9,2783.0,1.0]
[1643706258639,1.0,2785.7,2784.1,0.01269076]
[1643706258889,0.13819997,2785.9,2783.9,2.0]
[1643706259087,0.13819997,2785.9,2784.0,0.1794]
[1643706259088,0.01275116,2785.5,2784.0,0.1794]
[1643706259289,0.01275116,2785.5,2784.0,0.17973]
[1643706259493,0.01275116,2785.5,2784.1,0.6124]
[1643706259691,0.13819997,2785.9,2784.2,2.17973]
[1643706259892,0.13819997,2785.9,2784.3,0.1794]
[1643706260096,0.13819997,2785.9,2784.4,0.17973]
[1643706260292,0.13819997,2785.9,2784.8,0.95430394]
[1643706260499,0.13819997,2785.9,2784.6,1.0]
[1643706260500,0.13819997,2785.9,2784.9,0.35913]
[1643706260695,0.13819997,2785.9,2784.8,0.1794]
[1643706260892,0.13819997,2785.9,2784.7,0.1794]
[1643706260893,1.0,2785.7,2784.7,0.1794]
[1643706261097,0.1504577,2785.9,2784.1,2.1794]
[1643706261292,0.1504577,2785.9,2784.1,0.1794]
[1643706261497,0.01216702,2785.3,2784.1,0.1794]
[1643706261726,2.52112505,2785.3,2784.0,0.13819997]
[1643706262095,0.34391555,2784.5,2783.5,0.1794]
[1643706262297,0.34391555,2784.5,2783.0,0.1544]
[1643706262298,0.01219286,2784.1,2783.0,0.1544]
[1643706262524,0.33913571,2783.5,2782.8,0.1796]
[1643706262786,2.02503,2784.0,2782.7,0.1]
[1643706262925,0.433,2783.9,2782.7,0.1]
[1643706263128,0.02504,2783.8,2782.7,0.1]
[1643706263323,0.02504,2783.8,2782.5,0.1796]
[1643706263526,0.78616159,2783.6,2782.8,0.2165]
[1643706263926,0.02506,2783.5,2782.8,0.25]
[1643706264133,0.02506,2784.0,2782.8,0.25]
[1643706264733,2.4364,2785.2,2782.9,3.60152001]
[1643706264734,0.02508,2784.9,2782.9,3.60152001]
[1643706264930,2.4364,2785.2,2783.0,0.433]
[1643706265130,0.0251,2785.6,2783.0,0.433]
[1643706265131,0.0251,2785.6,2783.3,0.26207256]
[1643706265327,7.19201032,2785.8,2783.3,0.26207256]
[1643706265328,0.02512,2785.7,2783.4,2.62730454]
[1643706265529,0.02512,2785.7,2784.0,0.25]
[1643706265734,0.02512,2785.7,2784.5,1.0]
[1643706266031,7.19201032,2785.8,2784.6,2.35913]
[1643706266032,7.18,2785.8,2784.6,2.35913]
[1643706266277,7.18,2785.8,2785.2,1.0]
[1643706266479,0.433,2787.7,2785.3,2.35913]
[1643706266480,0.01,2786.7,2785.3,2.35913]
[1643706266678,3.93818,2787.7,2785.4,0.433]
[1643706266878,3.93818,2787.7,2785.6,0.25]
[1643706266879,0.01,2787.6,2785.6,0.25]
[1643706267077,0.03489,2787.6,2785.7,2.80726187]
[1643706267277,0.03489,2787.6,2785.9,1.0]
[1643706267477,0.03489,2787.6,2786.1,0.25]
[1643706267680,0.35190884,2787.3,2786.1,0.25]
[1643706267884,0.02485,2787.2,2786.1,0.25]
[1643706269182,0.02485,2787.2,2785.6,2.0]
[1643706269183,1.0,2787.1,2785.6,2.0]
[1643706269383,0.01251756,2787.3,2785.5,0.1794]
[1643706269384,0.01239971,2786.7,2785.5,0.1794]
[1643706269583,0.01239971,2786.7,2785.5,0.4294]
[1643706269788,0.02522,2786.6,2785.5,0.4294]
[1643706270057,0.02522,2786.6,2785.5,0.60067985]
[1643706270247,0.37349771,2785.7,2785.5,0.42094985]
[1643706270546,0.02548,2785.6,2785.5,0.1794]
[1643706271063,0.02548,2785.6,2784.0,4.53530146]
[1643706271064,3.0,2785.6,2783.7,0.50593512]
[1643706271267,3.0,2785.6,2783.0,3.60335495]
[1643706271270,0.01224865,2785.0,2783.4,0.5]
[1643706271456,0.35893,2784.9,2783.6,0.0758]
[1643706271644,0.79193,2784.9,2783.4,0.5]
[1643706272050,0.79193,2784.9,2782.0,2.41499224]
[1643706272051,0.6124,2784.9,2783.5,0.1795]
[1643706272247,0.71634768,2784.7,2783.5,0.1795]
[1643706272547,0.99999999,2783.8,2782.7,21.3194]
[1643706272847,0.99999999,2784.0,2782.7,21.3194]
[1643706273049,2.1796,2784.6,2782.7,0.1794]
[1643706273050,0.99999999,2784.3,2782.7,0.1794]
[1643706273348,2.1796,2784.6,2782.8,0.10338428]
[1643706273349,0.87107903,2784.1,2782.8,0.10338428]
[1643706273550,2.0,2784.0,2782.5,0.1796]
[1643706273790,0.99999999,2783.3,2782.5,0.1796]
[1643706274385,0.01292079,2783.5,2782.5,0.1796]
[1643706274888,0.99999999,2782.9,2782.5,0.1796]
[1643706275090,0.99999999,2782.9,2782.0,21.14]
[1643706275287,0.99999999,2782.8,2782.1,0.1796]
[1643706275486,2.1796,2783.5,2782.1,0.1796]
[1643706275487,0.1796,2783.5,2782.1,0.1796]
[1643706275690,0.00278991,2783.7,2782.2,21.14]
[1643706275889,0.02461,2783.9,2782.3,0.1796]
[1643706276688,0.88042668,2783.8,2782.3,0.1796]
[1643706276990,0.02461,2783.7,2782.6,22.14]
[1643706277190,2.02461,2784.0,2782.7,0.1796]